Cogmind - Beta 13 @@@ ROGUE MODE // 2024.05.23 @ 21:29:01 Player: Skergy Result: Destroyed by exploding Power Conduit Performance ------------- Evolutions (4) 2000 Regions Visited (7) 1400 Robots Destroyed (5) 25 Value Destroyed (186) 186 Prototype IDs (2) 40 Alien Tech Used (0) 0 Bonus (500) 500 TOTAL SCORE: 4151 Bonus ------- Entered DSFs 500 Cogmind --------- Core Integrity 0/850 Matter 89/300 Energy 72/100 System Corruption 2% Temperature Cool (45) Movement Core (50) Location -6/Factory Parts ------- > --- POWER (2) -------- (None) > --- PROPULSION (5) --- (None) > --- UTILITY (6) ------ Machine Analyzer Improved Signal Interpreter Transmission Jammer > --- WEAPON (2) ------- (None) > --- INVENTORY (5) ---- Carbon-fiber Leg Compact Matter Pod (0) Reaction Control System Lightning Gun Ion Cannon Peak State ------------ > --- POWER ------------ Light Deuterium Engine > --- PROPULSION ------- Cesium-ion Thruster Xenon Bombardment Thruster Xenon Bombardment Thruster Xenon Bombardment Thruster > --- UTILITY ---------- Small Storage Unit Subdweller Optics Improved Sensor Array Improved Signal Interpreter > --- WEAPON ----------- Improved EM Shotgun Lightning Gun > --- INVENTORY -------- Light Ion Engine Light Treads Carbon-fiber Leg Xenon Bombardment Thruster Reaction Control System Lightning Gun Field Laser Plasma Cutter [Rating: 36] Favorites ----------- Power Ion Engine Engine Ion Engine Power Core Micro Nuclear Core Propulsion Aluminum Leg Treads Light Treads Leg Aluminum Leg Wheel Compact Wheel Flight Unit Xenon Bombardment Thruster Utility Small Storage Unit Device Subdweller Optics Storage Small Storage Unit Processor Improved Signal Interpreter Protection Medium Armor Plating Weapon Medium Laser Energy Gun Medium Laser Energy Cannon Ion Cannon Ballistic Gun Heavy Assault Rifle Launcher Advanced EMP Blaster Special Weapon Plasma Cutter Build | -11 -10 -10 -10 -8 -7 -7 -6 ------- Run | Yrd Mat Min Sub Mat Fac DSF Fac Slots Evolved 8 | . . . . 4 2 . 2 Power 1 | . . . . . . . 1 Propulsion 3 | . . . . 2 1 . . Utility 4 | . . . . 2 1 . 1 Weapon . | . . . . . . . . Parts Attached 44 | 6 3 . 4 19 . 10 2 Power 6 | 1 . . . 2 . 2 1 Engine 5 | 1 . . . 2 . 1 1 Core 1 | . . . . . . 1 . Reactor . | . . . . . . . . Propulsion 15 | 2 . . 2 8 . 3 . Treads 2 | . . . 1 1 . . . Leg 3 | 2 . . 1 . . . . Wheel 1 | . . . . 1 . . . Hover . | . . . . . . . . Flight 9 | . . . . 6 . 3 . Utility 11 | 1 1 . 1 3 . 4 1 Device 6 | . . . 1 2 . 2 1 Storage 1 | 1 . . . . . . . Processor 2 | . . . . 1 . 1 . Hackware . | . . . . . . . . Protection 2 | . 1 . . . . 1 . Artifact . | . . . . . . . . Weapon 12 | 2 2 . 1 6 . 1 . Energy Gun 8 | 2 . . 1 5 . . . Energy Cannon 1 | . . . . . . 1 . Ballistic Gun 1 | . 1 . . . . . . Ballistic Cannon . | . . . . . . . . Launcher 1 | . . . . 1 . . . Special Weapon 1 | . 1 . . . . . . Impact Weapon . | . . . . . . . . Slashing Weapon . | . . . . . . . . Piercing Weapon . | . . . . . . . . Special Melee Weapon . | . . . . . . . . Unidentified Prototypes 2 | . . . . 2 . . . Parts Lost 28 | . . . 7 9 . 5 7 Power 4 | . . . 1 1 . . 2 Propulsion 12 | . . . 4 3 . 3 2 Utility 8 | . . . 1 2 . 2 3 Weapon 4 | . . . 1 3 . . . Highest Loss Streak 12 | . . . 6 7 . 12 6 To Critical Strikes . | . . . . . . . . Average Slot Usage (%) 87 | . 95 100 86 81 38 39 46 Engine 11 | . 14 14 12 8 . 2 2 Treads 1 | . . . . 6 . . . Leg 19 | . 28 28 24 . . . . Wheel 1 | . . . . 6 . . . Flight 2 | . . . . 11 15 11 4 Device 5 | . . . 4 16 7 6 16 Storage 11 | . 14 14 14 9 7 1 . Processor 2 | . . . . 7 7 9 13 Protection 6 | . 11 14 2 . . 2 3 Energy Gun 13 | . 15 14 13 16 . . . Ballistic Gun 8 | . . 14 12 . . . . Special Weapon 1 | . 10 . . . . . . Naked Turns . | . . . . . . . . Heaviest Build 22 | 14 22 22 22 21 6 16 20 Greatest Support 24 | 20 20 20 20 24 12 21 21 Greatest Overweight (x) 3 | 1 1 1 3 2 . . . Average Overweight (x) . | . . 1 . . . . . Largest Inventory Capacity 8 | 8 8 8 8 8 8 8 5 Average Capacity 7 | 7 8 8 8 8 8 5 5 Most Carried 8 | 6 8 8 8 8 7 8 5 Average Carried 7 | 4 7 8 7 5 7 4 4 Final Capacity 8 | 8 8 8 8 8 8 5 5 Final Carried 8 | 6 8 8 6 7 7 5 5 Class Distribution -------------------- 83% | Mutant 10% | Scavenger-Skirmisher 3% | Scout Dominant Class ---------------- Mutant | -10/Materials Mutant | -10/Mines Mutant | -10/Subcaves Scavenger-Skirmisher | -8/Materials Mutant | -7/Factory Mutant | -7/DSF Mutant | -6/Factory Resources | -11 -10 -10 -10 -8 -7 -7 -6 ----------- Run | Yrd Mat Min Sub Mat Fac DSF Fac Matter Collected 390 | 251 . . 107 32 . . . Remotely . | . . . . . . . . Salvage Created 205 | . . . 175 30 . . . Parts 12 | . . . 9 3 . . . Haulers Intercepted . | . . . . . . . . Recyclers Shooed . | . . . . . . . . Parts Field Recycled . | . . . . . . . . Retrieved Matter . | . . . . . . . . Parts Self-Destructed 4 | . . . 4 . . . . Prevented . | . . . . . . . . Kills | -11 -10 -10 -10 -8 -7 -7 -6 ------- Run | Yrd Mat Min Sub Mat Fac DSF Fac Combat Hostiles Destroyed 4 | . . . 4 . . . . Guns 4 | . . . 4 . . . . Classes Destroyed 3 | . . . 2 1 . . . Watcher 1 | . . . . 1 . . . Grunt 2 | . . . 2 . . . . Subdweller 2 | . . . 2 . . . . Best Kill Streak 2 | . . . 2 1 . . . Combat Bots Only 2 | . . . 2 . . . . Max Kills in Single Turn 1 | . . . 1 1 . . . Gunslinging . | . . . . . . . . Exploded . | . . . . . . . . Melee . | . . . . . . . . Uniques/NPCs Destroyed . | . . . . . . . . Combat | -11 -10 -10 -10 -8 -7 -7 -6 -------- Run | Yrd Mat Min Sub Mat Fac DSF Fac Hostile Shots Fired 263 | . . . 84 57 . 20 102 Missed 93 | . . . 21 28 . 7 37 Damage Taken 3340 | . . . 1108 500 . 486 1246 Core 1369 | . . . 228 39 . 196 906 Absorbed by Shields . | . . . . . . . . Core Remaining (%) 68 | 100 . . 8 92 . 72 . Volleys Fired 47 | . 9 1 33 4 . . . Largest 2 | . 2 2 2 2 . . . Hottest 115 | . 70 73 83 115 . . . Shots Fired 87 | . 12 2 65 8 . . . Gun 84 | . 9 2 65 8 . . . Cannon . | . . . . . . . . Launcher . | . . . . . . . . Special 3 | . 3 . . . . . . Kinetic 34 | . . 1 33 . . . . Thermal 52 | . 12 1 32 7 . . . Explosive . | . . . . . . . . Electromagnetic 1 | . . . . 1 . . . Robot Hit Streak 21 | . 1 . 21 4 . . . Robot Miss Streak 4 | . 3 . 4 2 . . . Penetration Max . | . . . . . . . . Secondary Targets . | . . . . . . . . Shots Hit Robots 55 | . 3 . 49 3 . . . Core Hits 11 | . . . 9 2 . . . Critical Kills . | . . . . . . . . Critical Parts Destroyed . | . . . . . . . . Critical Strikes 2 | . . . 2 . . . . Burn 1 | . . . 1 . . . . Destroy 1 | . . . 1 . . . . Melee Attacks . | . . . . . . . . Impact . | . . . . . . . . Slashing . | . . . . . . . . Piercing . | . . . . . . . . Sneak Attacks . | . . . . . . . . Combat Hostiles . | . . . . . . . . Follow-up Attacks . | . . . . . . . . Damage Inflicted 855 | . 25 . 760 53 . . 17 Guns 838 | . 25 . 760 53 . . . Cannons . | . . . . . . . . Explosions . | . . . . . . . . Melee . | . . . . . . . . Ramming 17 | . . . . . . . 17 Kinetic 408 | . . . 408 . . . . Thermal 430 | . 25 . 352 53 . . . Explosive . | . . . . . . . . Electromagnetic . | . . . . . . . . Impact . | . . . . . . . . Slashing . | . . . . . . . . Piercing . | . . . . . . . . Highest Corruption 2 | . . . . 2 . . 2 Average Corruption 1 | . . . . 2 . . 1 Corruption Purged . | . . . . . . . . Corruption Blocked . | . . . . . . . . Effects 2 | . . . . 1 . . 1 Matter Fused 1 | . . . . . . . 1 Heat Flow Errors 1 | . . . . 1 . . . Overload Shots . | . . . . . . . . Overflow Damage . | . . . . . . . . Projectiles . | . . . . . . . . Explosions . | . . . . . . . . Melee . | . . . . . . . . Knockbacks . | . . . . . . . . Impact . | . . . . . . . . Kinetic . | . . . . . . . . Secondary . | . . . . . . . . Self-Inflicted Damage 8 | . . . . . . . 8 Shots . | . . . . . . . . Rammed 3 | . . . . . . . 3 Targets Rammed 3 | . . . . . . . 3 Kicked . | . . . . . . . . Crushed . | . . . . . . . . Highest Temperature 431 | . 50 21 14 431 . . . Average Temperature 82 | . 22 12 8 104 . . . Received Heat Transfer 573 | . . . 393 153 . 9 18 Effects 1 | . . . . 1 . . . Shutdowns 1 | . . . . 1 . . . Siege Activations . | . . . . . . . . Robots Corrupted . | . . . . . . . . Combat Hostiles . | . . . . . . . . Parts Fried . | . . . . . . . . Impact Corruptions . | . . . . . . . . Robots Melted . | . . . . . . . . Combat Hostiles . | . . . . . . . . Parts Melted 1 | . . . 1 . . . . Heat Transferred 941 | . 74 . 780 87 . . . Parts Sabotaged . | . . . . . . . . Parts Stolen . | . . . . . . . . Parts Stripped . | . . . . . . . . Power Chain Reactions . | . . . . . . . . Alert | -11 -10 -10 -10 -8 -7 -7 -6 ------- Run | Yrd Mat Min Sub Mat Fac DSF Fac Peak Influence 86 | . 15 5 . 86 26 30 35 Initial 18 | . . 5 . . 9 18 15 Average 10 | . 13 2 . 23 21 5 24 Maximum Alert Level . | . . . . . . . . Low Security (%) 100 | 100 100 100 . 100 100 100 100 Level 1 . | . . . . . . . . Level 2 . | . . . . . . . . Level 3 . | . . . . . . . . Level 4 . | . . . . . . . . Level 5 . | . . . . . . . . High Security . | . . . . . . . . Max Security . | . . . . . . . . Squads Dispatched 6 | . 1 . . 4 . 1 . Investigation 2 | . . . . 2 . . . Extermination . | . . . . . . . . Reinforcement 4 | . 1 . . 2 . 1 . Assault . | . . . . . . . . Garrison . | . . . . . . . . Intercept . | . . . . . . . . Searches Triggered . | . . . . . . . . Construction Impeded . | . . . . . . . . Haulers Reinforced . | . . . . . . . . Active Scanning Responses . | . . . . . . . . Cargo Convoy Interrupts . | . . . . . . . . Stealth | -11 -10 -10 -10 -8 -7 -7 -6 --------- Run | Yrd Mat Min Sub Mat Fac DSF Fac Distress Signals 2 | . . . . 1 . . 1 Communications Jammed . | . . . . . . . . Distress Signals . | . . . . . . . . Times Spotted 63 | . 3 . 10 28 . 5 17 Peak Tracking Total 24 | . 2 . 6 24 . 5 14 Tactical Retreats 4 | . . . . 2 . 1 1 Traps | -11 -10 -10 -10 -8 -7 -7 -6 ------- Run | Yrd Mat Min Sub Mat Fac DSF Fac Traps Triggered 2 | . . . . 1 . 1 . Indirectly . | . . . . . . . . Trap Hack Attempts . | . . . . . . . . Triggered . | . . . . . . . . Disarmed . | . . . . . . . . Reprogrammed . | . . . . . . . . Reused . | . . . . . . . . Traps Extracted . | . . . . . . . . Installed . | . . . . . . . . Triggered . | . . . . . . . . Machines | -11 -10 -10 -10 -8 -7 -7 -6 ---------- Run | Yrd Mat Min Sub Mat Fac DSF Fac Machines Disabled . | . . . . . . . . Max in Single Turn . | . . . . . . . . Machines Repaired . | . . . . . . . . Machines Dismantled 2 | . 2 . . . . . . Machines Sabotaged . | . . . . . . . . Overloaded Fab Kills . | . . . . . . . . Hacking | -11 -10 -10 -10 -8 -7 -7 -6 --------- Run | Yrd Mat Min Sub Mat Fac DSF Fac Machines Accessed 9 | . 1 . . 5 2 . 1 Terminals 9 | . 1 . . 5 2 . 1 Fabricators . | . . . . . . . . Repair Stations . | . . . . . . . . Recycling Units . | . . . . . . . . Scanalyzers . | . . . . . . . . Garrison Access . | . . . . . . . . Total Hacks 18 | . 2 . . 11 4 . 1 Successful 6 | . . . . 3 2 . 1 Failed 12 | . 2 . . 8 2 . . Catastrophic 6 | . 1 . . 5 . . . Database Lockouts . | . . . . . . . . Manual 8 | . 2 . . 5 1 . . Terminals 18 | . 2 . . 11 4 . 1 Fabricators . | . . . . . . . . Repair Stations . | . . . . . . . . Recycling Units . | . . . . . . . . Scanalyzers . | . . . . . . . . Garrison Access . | . . . . . . . . Terminal Hacks 6 | . . . . 3 2 . 1 Record 1 | . . . . . 1 . . Open DSF 2 | . . . . . 1 . 1 Emergency Access Points 1 | . . . . 1 . . . Locate Traps 1 | . . . . 1 . . . Hauler Manifests 1 | . . . . 1 . . . Fabricator Hacks . | . . . . . . . . Repair Station Hacks . | . . . . . . . . Recycling Unit Hacks . | . . . . . . . . Scanalyzer . | . . . . . . . . Garrison Access Hacks . | . . . . . . . . Unauthorized Hacks . | . . . . . . . . Terminals . | . . . . . . . . Fabricators . | . . . . . . . . Repair Stations . | . . . . . . . . Recycling Units . | . . . . . . . . Scanalyzers . | . . . . . . . . Garrison Access . | . . . . . . . . Data Cores Recovered . | . . . . . . . . Used . | . . . . . . . . Hacking Detections 6 | . 1 . . 4 1 . . Full Trace Events 3 | . 1 . . 2 . . . Feedback Events . | . . . . . . . . Feedback Blocked . | . . . . . . . . Robot Schematics Acquired . | . . . . . . . . Robots Built . | . . . . . . . . Authchips . | . . . . . . . . Time . | . . . . . . . . Total Robot Build Rating . | . . . . . . . . Part Schematics Acquired . | . . . . . . . . Parts Built . | . . . . . . . . Authchips . | . . . . . . . . Time . | . . . . . . . . Total Part Build Rating . | . . . . . . . . Parts Repaired . | . . . . . . . . Time . | . . . . . . . . Parts Recycled . | . . . . . . . . Recycled Matter . | . . . . . . . . Retrieved Matter . | . . . . . . . . Retrieved Components . | . . . . . . . . Parts Scanalyzed . | . . . . . . . . Part Schematics Acquired . | . . . . . . . . Parts Damaged . | . . . . . . . . Bothacking | -11 -10 -10 -10 -8 -7 -7 -6 ------------ Run | Yrd Mat Min Sub Mat Fac DSF Fac Used RIF Installer . | . . . . . . . . Robots Hacked . | . . . . . . . . Non-combat . | . . . . . . . . Combat . | . . . . . . . . Robot Hacks Applied . | . . . . . . . . Relay Couplers Released . | . . . . . . . . Fabnet Peak Effective % . | . . . . . . . . Robots Rewired . | . . . . . . . . Allies Hacked . | . . . . . . . . Hacks Repelled . | . . . . . . . . Allies | -11 -10 -10 -10 -8 -7 -7 -6 -------- Run | Yrd Mat Min Sub Mat Fac DSF Fac Total Allies . | . . . . . . . . Largest Group . | . . . . . . . . Highest-Rated Group . | . . . . . . . . Highest-Rated Ally . | . . . . . . . . Total Orders . | . . . . . . . . Ally Attacks . | . . . . . . . . Total Damage . | . . . . . . . . Kills . | . . . . . . . . Allies Corrupted . | . . . . . . . . Allies Melted . | . . . . . . . . Intel | -11 -10 -10 -10 -8 -7 -7 -6 ------- Run | Yrd Mat Min Sub Mat Fac DSF Fac Robot Analysis Total . | . . . . . . . . Derelict Logs Recovered 2 | . . 1 1 . . . . Drone Launches . | . . . . . . . . Drone Recoveries . | . . . . . . . . Exploration | -11 -10 -10 -10 -8 -7 -7 -6 ------------- Run | Yrd Mat Min Sub Mat Fac DSF Fac Turns Passed 2009 | 74 204 699 473 410 16 58 75 Spaces Moved 1433 | 54 101 249 279 464 43 95 148 Core 118 | 9 . . 7 . . 27 75 Treads 18 | . . . 18 . . . . Legs 649 | 45 101 249 254 . . . . Wheels 176 | . . . . 176 . . . Hover . | . . . . . . . . Flight 472 | . . . . 288 43 68 73 Fastest Speed 29 | 50 120 190 120 29 37 34 37 Average Speed 100 | 110 126 190 132 61 37 40 43 Slowest Speed 225 | 120 190 190 200 225 37 50 50 Overloaded Moves . | . . . . . . . . Propulsion Burnouts . | . . . . . . . . Robots Hopped 13 | . . . . 8 . 2 3 Cave-ins Triggered . | . . . . . . . . Exploration Rate (%) 31 | 4 15 63 24 56 2 77 7 Regions Visited 7 Branch Regions 2 Pre-discovered Areas 1 | . . . 1 . . . . Known Exits Taken 2 | . . . . 1 1 . . Unknown Exits Taken 4 | 1 1 1 1 . . . . Scrap Searched . | . . . . . . . . Spaces Dug . | . . . . . . . . Terrain Destroyed . | . . . . . . . . Melee . | . . . . . . . . Projectile . | . . . . . . . . AOE . | . . . . . . . . Terrain Rammed . | . . . . . . . . Walls Destroyed . | . . . . . . . . Machines Disabled . | . . . . . . . . Actions | -11 -10 -10 -10 -8 -7 -7 -6 --------- Run | Yrd Mat Min Sub Mat Fac DSF Fac Total 1861 | 65 132 473 318 568 42 107 156 Wait 300 | . 1 224 . 74 . . 1 Move 1402 | 53 100 248 278 448 42 90 143 Hop 11 | . . . . 7 . 2 2 Pick Up 18 | 6 2 . 1 6 . 2 1 Fast Attach 27 | 6 2 . 2 10 . 7 . Attach 12 | . . . 2 6 . 2 2 Detach 6 | . 1 . . 4 . . 1 Swap 5 | . 1 . . 3 . 1 . Drop 9 | . 1 . 2 6 . . . Fire 47 | . 9 1 33 4 . . . Melee . | . . . . . . . . Ram 3 | . . . . . . . 3 Kick . | . . . . . . . . Crush . | . . . . . . . . Escape Stasis . | . . . . . . . . Rewire 6 | . . . . . . 3 3 Trap . | . . . . . . . . Miscellaneous 15 | . 15 . . . . . . Route ------- -11/Scrapyard -10/Materials -10/Mines (discovered 3 exits: [*Mat x2] / [*Sub]) -10/Subcaves -8/Materials -7/Factory -7/DSF -6/Factory History --------- Turn | Location | Event 7 | -11/Scrapyard | Discovered new exit (range 15) 75 | -11/Scrapyard | Entered Materials 182 | -10/Materials | Discovered new exit (range 15) 279 | -10/Materials | Entered Mines 301 | -10/Mines | Build established: Mutant 362 | -10/Mines | Learned Materials emergency access door positions 435 | -10/Mines | Discovered new exit (range 14) 501 | -10/Mines | Discovered new exit (range 8) 964 | -10/Mines | Discovered new exit (range 6) 978 | -10/Mines | Entered Subcaves 978 | -10/Subcaves | Learned location of Storage (-7) 1283 | -10/Subcaves | Discovered new exit (range 10) 1343 | -10/Subcaves | A swath of the cavern ceiling suddenly collapsed 1356 | -10/Subcaves | Ambushed by Subdwellers from Twisted Machinery 1386 | -10/Subcaves | Core integrity fell below 50% 1398 | -10/Subcaves | A Subdweller sparked back to life 1425 | -10/Subcaves | Core integrity fell below 20% 1451 | -10/Subcaves | Entered Materials 1451 | -8/Materials | Evolved 4 slots: Propulsion x2, Utility x2 1470 | -8/Materials | Lost 6 parts (1p4n1w) 1857 | -8/Materials | Discovered new exit (range 10) 1860 | -8/Materials | Identified exit to Factory 1861 | -8/Materials | Entered Factory 1861 | -7/Factory | Evolved 2 slots: Propulsion x1, Utility x1 1862 | -7/Factory | Identified exit to DSF 1877 | -7/Factory | Entered DSF 1900 | -7/DSF | Additional patrols routed to DSF 1910 | -7/DSF | Discovered new exit (range 14) 1934 | -7/DSF | Identified exit to Factory 1935 | -7/DSF | Entered Factory 1935 | -6/Factory | Evolved 2 slots: Power x1, Utility x1 1940 | -6/Factory | Lost 12 parts (1p6n3u2w) 1992 | -6/Factory | Core integrity fell below 50% 2009 | -6/Factory | Lost 6 parts (2p2n2u) 2010 | -6/Factory | Core integrity fell below 20% 2010 | -6/Factory | Destroyed by exploding Power Conduit Last Messages --------------- 01988_ K-01 Serf collects debris. 01989_ Slug penetrates Wall. 01992_ System corrupted: Matter fused (-8). 02006_ Slammed into S-27 Virus. 02007_ Slammed into P-60 Hacker. 02010_ Chain reaction triggered in Lgt. Nuclear Core. 02010_ S-27 Virus destroyed. 02010_ Power Conduit explodes. 02010_ S-27 Virus destroyed. 02010_ Power Conduit explodes. 02010_ P-60 Hacker destroyed. 02010_ Power Conduit explodes. 02010_ S-27 Virus destroyed. 02010_ G-50 Soldier destroyed. 02010_ Adv. Weight Redist. System destroyed. 02010_ Power Conduit explodes. 02010_ >> Machine Analyzer network decryption results: 02010_ Terminal x1 Map ----- +----------------------------------------------------+ | ?????"""?"""?"""????????????????????????????????? | | """??????????????????????????????????????????????? | | """??????????????????????????????????????????????? | | """ #???????######???????????????????????????????? | | """ #??????? #???????????????????????????????? | | #??????? #???????????????????????????????? | | #??????? #???????????????????????????????? | | #####?"""?""" #???????????????????????????????? | | ??? # """ """ #???????????????????????????????? | | "" # """ """ #???????????????????????????????? | | "" # #?##############????????????????? | | "" # """ """ #?# #????????????????? | | "" # """ """ #?# #????????????????" | | # """ """ #?/ s s #????????????????T | | ??# #?# #?"""?"""????????" | | ????# #?# # """?"""????????? | | ###########+######?# # """ """????????? | | #???# ???????????? | | #???# ] ???????"""? | | #???# ????????"""? | | #???# ??????????"""? | | #???# ;;??????????????? | | ########## #???# % ;??????????????? | | ?????????# #####; ;; ????????? | | ???????# h ????????? | | " #??????# @ ????????? | | " #??????# #### ????????? | | " #??????# k #???????????????????? | | #?""???# #???????????????????? | | #?"????# #### ###???????????????????? | | *???"F???# #??# #?????????????????????? | | ????""???#" #??# #?????????????????????? | | ?????????#%" #??? #?????????????????????? | | ???????? / #??? #?????????????????????? | | ??????? # #??? #?????????????????????? | | ????"""" # #??? #?????????????????????? | | ????""""?# ########???+#?????????????????????? | | ????""""?# ??????????????????????????????????? | | ????""""?? ??????????????????????????????????? | | ???????????? ??????????????????????????????????? | | ?????????????????????????????????????????????????? | | ?????????????????????????????????????????????????? | | ?????????????????????????????????????????????????? | | ?????????????????????????????????????????????????? | | ?????????????????????????????????????????????????? | | ?????????????????????????????????????????????????? | | ?????????????????????????????????????????????????? | | ?????????????????????????????????????????????????? | | ?????????????????????????????????????????????????? | | ?????????????????????????????????????????????????? | +----------------------------------------------------+ Best States ------------- Heat Dissipation 37 Energy Generation 20 Energy Capacity 250 Matter Stores 300 Matter Capacity 300 Sight Range 21 Robot Scan Range 15 Terrain Scan Density 10 Jamming Range 12 Additional Mass Support 9 Armor Coverage 225 Evasion (%) 64 Recoil Reduction 1 Item Schematics ----------------- None Robot Schematics ------------------ None Fabricated ------------ Nothing Alien Tech Used ----------------- None Achievements -------------- None Challenges ------------ None Game ------ Seed AntimatterSmallFlamer Manual? 0 Play Time 00:28:33 Cumulative 21.7 hours Start 2024.05.23 @ 20:59:40 End 2024.05.23 @ 21:29:01 Sessions 1 Manual Loads 0 Difficulty Rogue Special Mode None Game No. 18 Rogue 18 Adventurer 0 Explorer 0 Win Type - Total 0 Types 0/0/0/0/0/0/0/0/0 Lore% 19 Gallery% 26 Achievement% 23 Wizard Run 0 Options --------- Layout 1 ASCII 0 Keyboard 1 Movement Arrows Keybinds 0 Fullscreen 1 Font 24/Cog Map View 50x35 Zoom Use 0% Tactical HUD 1 Map Filters NONE Filters NONE Steam 1 RUN: 2159eb1d-2cf3-4811-b50f-5a9329b6baa8